fUST/lending_fUST_20250702
["ID","MTS","AMOUNT","RATE_DAILY","PERIOD"]
[369073323,1751453474469,-487.35,0.00022191,2]
[369073324,1751453474478,-696.73,0.00022191,2]
[369073325,1751453474488,-460.0,0.00022191,2]
[369073326,1751453474497,-3884.47,0.00022191,2]
[369073327,1751453474508,-577.38,0.00022191,2]
[369073328,1751453474517,-460.0,0.00022191,2]
[369073329,1751453474526,-484.29,0.00022191,2]
[369073330,1751453474536,-1392.92,0.00022191,2]
[369073331,1751453474546,-1401.48,0.00022191,2]
[369073332,1751453474556,-707.21,0.00022191,2]
[369073333,1751453474565,-1487.79,0.00022191,2]
[369073334,1751453474576,-505.98,0.00022191,2]
[369073335,1751453474585,-1037.19,0.00022191,2]
[369073336,1751453474594,-810.3,0.00022191,2]
[369073337,1751453474607,-482.9,0.00022191,2]
[369073338,1751453474617,-3171.18,0.00022191,2]
[369073339,1751453474626,-12573.65100011,0.000222,7]
[369073340,1751453474636,-847.65867985,0.000222,7]
[369073341,1751453474647,-213.90888375,0.000222,7]
[369073342,1751453474656,-160.0,0.000222,7]
[369073343,1751453474665,-444.26419886,0.00022228,2]
[369073344,1751453474675,-8759.82402303,0.00022284,2]
[369073345,1751453474712,-1084.552361,0.00022284,7]
[369073346,1751453474721,-507.09,0.00022362,4]
[369073347,1751453474730,-231.74191,0.00022362,7]
[369073348,1751453474740,-221.739002,0.00022362,7]
[369073349,1751453474749,-231.74191,0.00022362,7]
[369073350,1751453474758,-374.526579,0.00022362,7]
[369073351,1751453474768,-374.526579,0.00022362,7]
[369073352,1751453474777,-290.625628,0.00022362,7]
[369073353,1751453474786,-290.625628,0.00022362,7]
[369073354,1751453474796,-212.0,0.00022375,2]
[369073355,1751453474805,-171.99853223,0.00022384,2]
[369073356,1751453474814,-164.87932811,0.00022384,2]
[369073357,1751453474824,-507.09,0.00022462,4]
[369073358,1751453474833,-151.0,0.00022465,7]
[369073359,1751453474843,-151.0,0.00022465,7]
[369073360,1751453474852,-151.0,0.00022465,7]
[369073361,1751453474862,-436.859055,0.00022465,7]
[369073362,1751453474871,-436.859055,0.00022465,7]
[369073363,1751453474880,-151.0,0.00022465,7]
[369073364,1751453474889,-493.64,0.00022465,2]
[369073365,1751453474898,-460.0,0.00022465,2]
[369073366,1751453474907,-163.235799,0.00022465,7]
[369073367,1751453474917,-163.235803,0.00022465,7]
[369073368,1751453474927,-176.443794,0.00022465,7]
[369073369,1751453474936,-506.41,0.00022465,2]
[369073370,1751453474945,-176.443794,0.00022465,7]
[369073371,1751453474954,-1129.18,0.00022465,2]
[369073372,1751453474963,-1998.73,0.00022465,2]
[369073373,1751453474972,-807.76,0.00022465,2]
[369073374,1751453474983,-507.57,0.00022465,2]
[369073375,1751453474992,-527.98,0.00022465,2]
[369073376,1751453475001,-488.07,0.00022465,2]
[369073377,1751453475012,-516.17,0.00022465,2]
[369073378,1751453475022,-1187.77,0.00022465,2]
[369073379,1751453475031,-820.5,0.00022465,2]
[369073380,1751453475041,-2136.56,0.00022465,2]
[369073381,1751453475050,-479.95,0.00022465,2]
[369073382,1751453475060,-1856.64,0.00022465,2]
[369073383,1751453475070,-1691.26,0.00022465,2]
[369073384,1751453475080,-164.89747673,0.00022465,2]
[369073385,1751453475090,-770.55,0.00022465,2]
[369073386,1751453475100,-1896.16,0.00022465,2]
[369073387,1751453475114,-248.99506236,0.00022465,2]
[369073388,1751453475123,-461.71,0.00022465,2]
[369073389,1751453475133,-467.10298739,0.00022465,2]
[369073390,1751453475142,-3693.36,0.00022465,2]
[369073391,1751453475151,-2788.68,0.00022465,2]
[369073392,1751453475161,-1348.54,0.00022465,2]
[369073393,1751453475170,-996.85,0.00022465,2]
[369073394,1751453475180,-970.62,0.00022465,2]
[369073395,1751453475189,-487.35,0.00022465,2]
[369073396,1751453475199,-696.73,0.00022465,2]
[369073397,1751453475208,-460.0,0.00022465,2]
[369073398,1751453475217,-3884.47,0.00022465,2]
[369073399,1751453475227,-577.38,0.00022465,2]
[369073400,1751453475236,-314.21555245,0.00022465,2]
[369073401,1751453475245,-484.29,0.00022465,2]
[369073402,1751453475255,-1392.92,0.00022465,2]
[369073403,1751453475265,-1401.48,0.00022465,2]
[369073404,1751453475274,-707.21,0.00022465,2]
[369073405,1751453475284,-1487.79,0.00022465,2]
[369073406,1751453475293,-505.98,0.00022465,2]
[369073407,1751453475302,-1037.19,0.00022465,2]
[369073408,1751453475311,-810.3,0.00022465,2]
[369073409,1751453475320,-482.9,0.00022465,2]
[369073410,1751453475329,-3171.18,0.00022465,2]
[369073411,1751453475338,-2960.0,0.00022484,2]
[369073412,1751453475348,-585.33300704,0.00022485,2]
[369073413,1751453475357,-1621.92735466,0.00022486,7]
[369073414,1751453475367,-900.0,0.00022502,2]
[369073415,1751453475376,-366.3581911,0.00022549,2]
[369073416,1751453475385,-732.6008764,0.00022558,2]
[369073417,1751453475395,-312.4,0.00022558,5]
[369073418,1751453475404,-507.09,0.00022562,4]
[369073419,1751453475413,-8142.39327139,0.000226,5]
[369073420,1751453475424,-151.0,0.000226,7]
[369073421,1751453475433,-151.0,0.000226,7]
[369073422,1751453475442,-151.0,0.000226,7]
[369073423,1751453475451,-151.0,0.000226,7]
[369073424,1751453475460,-151.0,0.000226,7]
[369073425,1751453475469,-366.169263,0.00022603,2]
[369073426,1751453475478,-180.777695,0.0002263,7]
[369073427,1751453475487,-180.777695,0.0002263,7]
[369073428,1751453475496,-507.09,0.00022662,2]
[369073429,1751453475506,-160.0,0.00022663,3]
[369073430,1751453475515,-171.99853223,0.00022685,2]
[369073431,1751453475525,-151.0,0.00022739,7]
[369073432,1751453475534,-151.0,0.00022739,7]
[369073433,1751453475543,-308.856348,0.00022739,7]
[369073434,1751453475553,-493.87174386,0.00022739,2]
[369073435,1751453475562,-309.78261049,0.00022739,2]
[369073436,1751453475571,-911.517253,0.00022739,7]
[369073437,1751453475580,-911.517252,0.00022739,7]
[369073438,1751453475590,-506.41404704,0.00022739,2]
[369073439,1751453475604,-1129.23716576,0.00022739,2]
[369073440,1751453475613,-1998.90191145,0.00022739,2]
[369073441,1751453475623,-807.78,0.00022739,2]
[369073442,1751453475632,-507.77067664,0.00022739,2]
[369073443,1751453475643,-528.16783799,0.00022739,2]
[369073444,1751453475651,-488.1217154,0.00022739,2]
[369073445,1751453475661,-516.28,0.00022739,2]
[369073446,1751453475672,-1187.77549735,0.00022739,2]
[369073447,1751453475681,-820.64914363,0.00022739,2]
[369073448,1751453475691,-2136.57548203,0.00022739,2]
[369073449,1751453475700,-480.16357597,0.00022739,2]
[369073450,1751453475710,-1856.79971314,0.00022739,2]
[369073451,1751453475720,-1691.45630885,0.00022739,2]
[369073452,1751453475729,-770.67687844,0.00022739,2]
[369073453,1751453475739,-1896.2831576,0.00022739,2]
[369073454,1751453475747,-461.81064765,0.00022739,2]
[369073455,1751453475757,-3693.45287059,0.00022739,2]
[369073456,1751453475766,-2788.84220934,0.00022739,2]
[369073457,1751453475776,-1348.75066708,0.00022739,2]
[369073458,1751453475785,-996.99694581,0.00022739,2]
[369073459,1751453475794,-970.63359941,0.00022739,2]
[369073460,1751453475804,-487.37735577,0.00022739,2]
[369073461,1751453475813,-696.76469156,0.00022739,2]
[369073462,1751453475823,-210.73566972,0.00022739,2]
[369073463,1751453475833,-3884.48801532,0.00022739,2]
[369073464,1751453475842,-577.38477125,0.00022739,2]
[369073465,1751453475851,-484.39718424,0.00022739,2]
[369073466,1751453475861,-1392.97627707,0.00022739,2]
[369073467,1751453475870,-1401.52585705,0.00022739,2]
[369073468,1751453475879,-707.27,0.00022739,2]
[369073469,1751453475888,-1487.79213253,0.00022739,2]
[369073470,1751453475897,-506.07613045,0.00022739,2]
[369073471,1751453475906,-1037.22308898,0.00022739,2]
[369073472,1751453475915,-810.52803697,0.00022739,2]
[369073473,1751453475925,-483.00865213,0.00022739,2]
[369073474,1751453475934,-3171.19350089,0.00022739,2]
[369073475,1751453475943,-507.09,0.00022762,2]
[369073476,1751453475952,-177.6255604,0.00022783,2]
[369073477,1751453475961,-574.2856563,0.00022783,2]
[369073478,1751453475971,-1275.690278,0.00022783,2]
[369073479,1751453475980,-914.509811,0.00022783,2]
[369073480,1751453475989,-151.0,0.00022783,7]
[369073481,1751453475998,-200.620915,0.00022783,7]
[369073482,1751453476007,-151.0,0.00022783,7]
[369073483,1751453476016,-294.944168,0.00022783,7]
[369073484,1751453476025,-294.944168,0.00022783,7]
[369073485,1751453476036,-1621.92735466,0.00022797,7]
[369073486,1751453476045,-4474.7,0.000228,7]
[369073487,1751453476054,-151.0,0.000228,7]
[369073488,1751453476064,-507.09,0.00022862,6]
[369073489,1751453476073,-239.84119403,0.00022932,2]
[369073490,1751453476082,-507.09,0.00022962,7]
[369073491,1751453476091,-1208.43,0.00023,7]
[369073492,1751453476101,-160.0,0.00023,3]
[369073493,1751453476111,-169.0,0.00023,7]
[369073494,1751453476120,-507.09,0.00023062,5]
[369073495,1751453476130,-312.4,0.00023094,6]
[369073496,1751453476140,-1621.92735466,0.00023107,8]
[369073497,1751453476149,-1152.0,0.00023155,2]
[369073498,1751453476158,-507.09,0.00023162,5]
[369073499,1751453476167,-12995.07,0.000232,2]
[369073500,1751453476177,-500.0,0.00023226,2]
[369073501,1751453476186,-507.09,0.00023262,4]
[369073502,1751453476195,-300.0,0.00023287,2]
[369073503,1751453476205,-193.04604376,0.0002329,4]
[369073504,1751453476215,-193.04,0.0002329,4]
[369073505,1751453476224,-150.14692292,0.0002329,4]
[369073506,1751453476233,-150.14692292,0.0002329,4]
[369073507,1751453476242,-150.14692292,0.0002329,4]
[369073508,1751453476252,-150.14692292,0.0002329,4]
[369073509,1751453476261,-150.14692292,0.0002329,4]
[369073510,1751453476270,-150.14,0.0002329,4]
[369073511,1751453476279,-176.30150623,0.0002329,4]
[369073512,1751453476288,-176.3,0.0002329,4]
[369073513,1751453476297,-210.22,0.0002329,4]
[369073514,1751453476307,-163.50590539,0.0002329,4]
[369073515,1751453476316,-163.50590539,0.0002329,4]
[369073516,1751453476326,-163.5,0.0002329,4]
[369073517,1751453476335,-507.09,0.00023362,4]
[369073518,1751453476344,-1621.92735466,0.00023417,9]
[369073519,1751453476354,-200.0,0.0002343,8]
[369073520,1751453476363,-507.09,0.00023462,5]
[369073521,1751453476372,-507.09,0.00023562,2]
[369073522,1751453476381,-153.0,0.00023582,2]
[369073523,1751453476391,-153.0,0.00023582,2]
[369073524,1751453476400,-153.0,0.00023582,2]
[369073525,1751453476409,-153.0,0.00023582,2]
[369073526,1751453476418,-312.4,0.00023631,6]
[369073527,1751453476427,-177.5677436,0.00023653,2]
[369073528,1751453476436,-507.09,0.00023662,5]
[369073529,1751453476446,-500.0,0.00023671,2]
[369073530,1751453476457,-1621.92735466,0.00023728,9]
[369073531,1751453476466,-585.33300704,0.00023754,2]
[369073532,1751453476475,-507.09,0.00023762,5]
[369073533,1751453476485,-151.0,0.00023775,7]
[369073534,1751453476493,-151.0,0.00023775,7]
[369073535,1751453476502,-151.0,0.00023775,7]
[369073536,1751453476511,-151.0,0.00023775,7]
[369073537,1751453476520,-606.190022,0.00023775,7]
[369073538,1751453476530,-606.190022,0.00023775,7]
[369073539,1751453476539,-151.0,0.00023775,7]
[369073540,1751453476548,-154.981097,0.00023775,7]
[369073541,1751453476557,-151.0,0.00023775,7]
[369073542,1751453476566,-151.0,0.00023775,7]
[369073543,1751453476576,-151.0,0.00023775,7]
[369073544,1751453476585,-770.383127,0.00023775,7]
[369073545,1751453476595,-308.856348,0.00023775,7]
[369073546,1751453476609,-770.383127,0.00023775,7]
[369073547,1751453476618,-155.278732,0.00023775,7]
[369073548,1751453476627,-151.429979,0.00023775,7]
[369073549,1751453476636,-151.429979,0.00023775,7]
[369073550,1751453476646,-151.0,0.00023775,7]
[369073551,1751453476655,-151.0,0.00023775,7]
[369073552,1751453476664,-436.859055,0.00023775,7]
[369073553,1751453476674,-436.859055,0.00023775,7]
[369073554,1751453476684,-1084.552361,0.00023775,7]
[369073555,1751453476693,-151.0,0.00023775,7]
[369073556,1751453476702,-231.74191,0.00023775,7]
[369073557,1751453476711,-221.738998,0.00023775,7]
[369073558,1751453476721,-231.741912,0.00023775,7]
[369073559,1751453476730,-374.526579,0.00023775,7]
[369073560,1751453476739,-374.526573,0.00023775,7]
[369073561,1751453476749,-290.625628,0.00023775,7]
[369073562,1751453476758,-290.625633,0.00023775,7]
[369073563,1751453476768,-176.443794,0.00023775,7]
[369073564,1751453476777,-176.443789,0.00023775,7]
[369073565,1751453476787,-78357.22551932,0.00023775,7]
[369073566,1751453476863,-2173.90706407,0.00023775,7]
[369073567,1751453477180,-460.0,0.00016438,2]
[369073568,1751453477189,-460.0,0.00016438,2]
[369073569,1751453477199,-460.0,0.00016438,2]
[369073570,1751453477209,-460.0,0.00016438,2]
[369073571,1751453477218,-460.0,0.00016438,2]
[369073572,1751453477228,-223.51432272,0.00016438,2]
[369073573,1751453477239,-236.48567728,0.00016438,2]
[369073574,1751453477249,-460.0,0.00016438,2]
[369073575,1751453477259,-460.0,0.00016712,2]
[369073576,1751453477268,-337.15407982,0.00016712,2]
[369073577,1751453479145,1000.0,0.00024,60]
[369073578,1751453479184,1000.0,0.00024,60]
[369073579,1751453485126,-155.8454081,0.00016338,2]
[369073580,1751453496017,1000.0,0.00024,60]
[369073581,1751453505089,210.0,0.00027397,120]
[369073582,1751453521045,1000.0,0.00024,60]
[369073583,1751453556910,-163.41782826,0.00016138,2]
[369073584,1751453559454,-163.09534951,0.00016138,2]
[369073585,1751453564666,24900.0,0.0001559,2]
[369073586,1751453567643,-158.52681373,0.00016138,2]
[369073588,1751453975913,-5000000.0,0.00025078,20]
[369073589,1751453980211,-5000000.0,0.00025078,20]
[369073590,1751453984447,-5000000.0,0.00025078,20]
[369073591,1751453988351,-5000000.0,0.00025078,20]
[369073592,1751454061333,-467.0,0.00025,60]
[369073593,1751454061367,-2760.0,0.00025091,60]
[369073594,1751454061392,-10000.0,0.00025107,60]
[369073595,1751454061426,-10000.0,0.00025122,60]
[369073596,1751454061450,-2036.0,0.00025122,60]
[369073597,1751454061479,-837.27862799,0.00026,30]
[369073598,1751454061503,-230.34465076,0.00026,30]
[369073599,1751454061529,-213.90888375,0.00026,30]
[369073600,1751454061552,-160.0,0.00026,30]
[369073601,1751454061577,-215.04179405,0.00026,30]
[369073602,1751454061605,-1159.43941,0.000274,120]
[369073603,1751454061631,-200.0,0.00027455,120]
[369073604,1751454061657,-1159.43941,0.000275,120]
[369073605,1751454061680,-822.79665497,0.000275,30]
[369073606,1751454061705,-200.0,0.0002755,120]
[369073607,1751454061729,-1159.43941,0.000276,120]
[369073608,1751454061754,-1159.43941,0.000277,120]
[369073609,1751454061782,-1159.43942,0.000278,120]
[369073610,1751454061967,-210.55774,0.00029,120]
[369073611,1751454061992,-210.55774,0.00029,120]
[369073612,1751454062017,-210.55775,0.00029,120]
[369073613,1751454062041,-1359.19062281,0.00029,120]
[369073614,1751454062066,-1444.0,0.00029041,120]
[369073615,1751454062091,-195.49889572,0.0003,120]
[369073616,1751454062113,-1800.0,0.0003,120]
[369073617,1751454062138,-2000.0,0.0003,120]
[369073618,1751454062162,-200.0,0.0003,120]
[369073619,1751454062185,-4000.0,0.0003,120]
[369073620,1751454062208,-524.6887252,0.0003,120]
[369073621,1751454062231,-355.2511208,0.00030147,30]
[369073622,1751454062254,-575.597667,0.00030147,30]
[369073623,1751454062276,-153.0,0.00030147,30]
[369073624,1751454062300,-159.3697675,0.00030147,30]
[369073625,1751454062323,-153.0,0.00030147,30]
[369073626,1751454062346,-159.3697675,0.00030147,30]
[369073627,1751454062370,-159.3697675,0.00030147,30]
[369073628,1751454062393,-575.597667,0.00030147,30]
[369073629,1751454062417,-159.3697675,0.00030147,30]
[369073630,1751454062440,-355.2511208,0.00030147,30]
[369073631,1751454062463,-575.597667,0.00030147,30]
[369073632,1751454062487,-575.597667,0.00030147,30]
[369073633,1751454062511,-837.27862799,0.00031,120]
[369073634,1751454062535,-230.34465076,0.00031,120]
[369073635,1751454062558,-160.0,0.00031,120]
[369073636,1751454062582,-215.04179405,0.00031,120]
[369073637,1751454062606,-200.0,0.00031552,120]
[369073638,1751454062630,-200.0,0.00031552,120]
[369073639,1751454062654,-4206.0,0.00032,60]
[369073640,1751454062678,-2000.0,0.00032,120]
[369073641,1751454062703,-1000.0,0.00033,120]
[369073642,1751454062727,-1444.0,0.00033973,120]
[369073643,1751454062751,-2000.0,0.00034,120]
[369073644,1751454062779,-200.0,0.00034246,120]
[369073645,1751454062802,-200.0,0.00034246,120]
[369073646,1751454062826,-517.9462302,0.00034588,47]
[369073647,1751454062867,-6982.38,0.00034942,45]
[369073648,1751454062898,-5039.2742638,0.00034942,48]
[369073649,1751454062921,-150.0,0.00035,69]
[369073650,1751454062943,-258.72582534,0.00035,120]
[369073651,1751454062967,-443.78512522,0.00035,120]
[369073652,1751454062990,-210.78905279,0.00035,30]
[369073653,1751454063013,-300.0,0.00035,120]
[369073654,1751454063035,-153.0,0.00035,120]
[369073655,1751454063057,-200.0,0.00035,120]
[369073656,1751454063083,-1444.0,0.00035616,30]
[369073657,1751454063107,-2000.0,0.00036,120]
[369073658,1751454063130,-226.61054763,0.00036,30]
[369073659,1751454063156,-286.65491929,0.0003728,120]
[369073660,1751454063180,-200.0,0.00037863,120]
[369073661,1751454063205,-200.0,0.00037863,120]
[369073662,1751454063229,-500.0,0.00037999,30]
[369073663,1751454063252,-500.0,0.00037999,30]
[369073664,1751454063276,-500.0,0.00037999,30]
[369073665,1751454063299,-500.0,0.00037999,30]
[369073666,1751454063325,-500.0,0.00037999,30]
[369073667,1751454063349,-500.0,0.00037999,30]
[369073668,1751454063372,-500.0,0.00037999,30]
[369073669,1751454063396,-500.0,0.00037999,30]
[369073670,1751454063421,-500.0,0.00037999,30]
[369073671,1751454063444,-500.0,0.00037999,30]
[369073672,1751454063467,-500.0,0.00037999,30]
[369073673,1751454063491,-500.0,0.00037999,30]
[369073674,1751454063516,-500.0,0.00037999,30]
[369073675,1751454063540,-500.0,0.00037999,30]
[369073676,1751454063565,-500.0,0.00037999,30]
[369073677,1751454063589,-2000.0,0.00038,120]
[369073678,1751454063613,-160393.66570552,0.00038,120]
[369073679,1751454063637,-75089.13550606,0.00038,120]
[369073680,1751454063661,-5000.0,0.000385,90]
[369073681,1751454063684,-1444.0,0.00038904,90]
[369073682,1751454063708,-164.0,0.00039479,53]
[369073683,1751454063733,-5000.0,0.000395,90]
[369073684,1751454063758,-500.0,0.00039596,30]
[369073685,1751454063783,-500.0,0.00039999,30]
[369073686,1751454063810,-500.0,0.00039999,30]
[369073687,1751454063835,-500.0,0.00039999,30]
[369073688,1751454063859,-500.0,0.00039999,30]
[369073689,1751454063884,-500.0,0.00039999,30]
[369073690,1751454063910,-500.0,0.00039999,30]
[369073691,1751454063935,-500.0,0.00039999,30]
[369073692,1751454063960,-500.0,0.00039999,30]
[369073693,1751454063985,-500.0,0.00039999,30]
[369073694,1751454064014,-500.0,0.00039999,30]
[369073695,1751454064043,-500.0,0.00039999,30]
[369073696,1751454064072,-500.0,0.00039999,30]
[369073697,1751454064099,-500.0,0.00039999,30]
[369073698,1751454064123,-500.0,0.00039999,30]
[369073699,1751454064150,-246.00494616,0.0004,30]
[369073700,1751454064177,-211.87190415,0.0004,120]
[369073701,1751454064202,-150.43663289,0.0004,30]
[369073702,1751454064231,-206.0,0.0004,120]
[369073703,1751454064259,-1125.0,0.0004,120]
[369073704,1751454064286,-2000.0,0.0004,120]
[369073705,1751454064313,-1085.70316371,0.0004,30]
[369073706,1751454064341,-524.61914904,0.0004,120]
[369073707,1751454064368,-1022.87915,0.0004,120]
[369073708,1751454064394,-100032.3733283,0.0004,30]
[369073709,1751454064422,-524.6887252,0.0004,120]
[369073710,1751454064448,-837.27862799,0.0004,120]
[369073711,1751454064474,-837.27862799,0.0004,30]
[369073712,1751454064501,-230.34465076,0.0004,120]
[369073713,1751454064528,-230.34465076,0.0004,30]
[369073714,1751454064554,-160.0,0.0004,120]
[369073715,1751454064579,-160.0,0.0004,30]
[369073716,1751454064606,-215.04179405,0.0004,120]
[369073717,1751454064630,-155.0,0.0004,120]
[369073718,1751454064653,-5000.0,0.000405,100]
[369073719,1751454064679,-1190.75223386,0.00040548,120]
[369073720,1751454064703,-152.0,0.00041041,31]
[369073721,1751454064729,-700.0,0.00041095,120]
[369073722,1751454064756,-164.04427931,0.00041095,120]
[369073723,1751454064785,-1081.55,0.00041096,120]
[369073724,1751454064812,-200.0,0.00041096,120]
[369073725,1751454064839,-200.0,0.00041096,120]
[369073726,1751454064866,-214.12672951,0.00041096,120]
[369073727,1751454064893,-5000.0,0.000415,100]
[369073728,1751454064921,-571.75222349,0.000418,120]
[369073729,1751454064945,-718.31293059,0.00042,60]
[369073730,1751454064968,-12606.88874697,0.00042,30]
[369073731,1751454064992,-1000.0,0.00042,120]
[369073732,1751454065017,-152.0,0.00042361,31]
[369073733,1751454065041,-1759.64803438,0.000424,120]
[369073734,1751454065068,-30000.00049419,0.000425,120]
[369073735,1751454065095,-5000.0,0.000425,120]
[369073736,1751454065122,-5000.0,0.00042586,30]
[369073737,1751454065145,-5000.0,0.00042586,30]
[369073738,1751454065169,-5000.0,0.00042586,30]
[369073739,1751454065193,-5000.0,0.00042586,30]
[369073740,1751454065218,-5000.0,0.00042586,30]
[369073741,1751454065245,-5000.0,0.00042586,30]
[369073742,1751454065269,-2696.19,0.00042586,30]
[369073743,1751454065293,-558.76,0.00042951,66]
[369073744,1751454065317,-200.0,0.00043,120]
[369073745,1751454065341,-1423.91156686,0.0004315,120]
[369073746,1751454065365,-200000.0,0.00043322,120]
[369073747,1751454065390,-5000.0,0.0004349,90]
[369073748,1751454065414,-5000.0,0.000435,120]
[369073749,1751454065438,-152.0,0.0004368,31]
[369073750,1751454065463,-1000.0,0.000438,90]
[369073751,1751454065487,-1000.0,0.000438,90]
[369073752,1751454065511,-1000.0,0.000438,90]
[369073753,1751454065537,-1000.0,0.000438,90]
[369073754,1751454065562,-441.45854085,0.00043836,120]
[369073755,1751454132848,245.6584351,0.00025078,120]
[369073756,1751454210718,200.0,0.00025954,120]
[369073758,1751454243284,376.707676,0.00013699,2]
[369073759,1751454279630,154.0,0.00024,120]
[369073760,1751454304724,3000.0,0.00027397,120]
[369073761,1751454358295,1473.534014,0.00027397,120]
[369073762,1751454368005,151.0,0.00013699,2]
[369073763,1751454412754,180.0,0.000273,120]
[369073764,1751454466493,19034.856415,0.000273,120]
[369073780,1751454632239,-1200.0,0.00016237,2]
[369073781,1751454632249,-158.2402005,0.00016238,2]
[369073782,1751454632258,-3762.15146818,0.00016238,2]
[369073783,1751454632290,-710.17380002,0.00016238,2]
[369073861,1751454635269,644.43753,0.00027,120]
[369073954,1751454643480,-500.0,0.00016237,2]
[369073956,1751454643490,-500.0,0.00016237,2]
[369073958,1751454643501,-250.0,0.00016237,2]
[369073960,1751454643511,-500.0,0.00016237,2]
[369073962,1751454643522,-500.0,0.00016237,2]
[369073964,1751454643532,-267.21370442,0.00016237,2]
[369073966,1751454643541,-323.6747318,0.00016238,2]
[369073968,1751454643551,-300.0,0.00016336,2]
[369073970,1751454643560,-212.0,0.00016336,2]
[369073972,1751454643571,-300.0,0.00016336,2]
[369073974,1751454643581,-300.0,0.00016336,2]
[369073976,1751454643590,-160.0,0.00016337,2]
[369073978,1751454643599,-221.63594264,0.00016338,2]
[369073980,1751454643609,-202.82,0.00016428,3]
[369073982,1751454643618,-608.5,0.00016428,3]
[369073984,1751454643627,-5869.91494096,0.00016434,2]
[369073987,1751454643649,-1216.95539875,0.00016434,2]
[369073990,1751454643664,-752.10760534,0.00016434,2]
[369073992,1751454643674,-1200.0,0.00016434,2]
[369073994,1751454643684,-329.07869915,0.00016438,2]
[369073997,1751454643693,-460.0,0.00016438,2]
[369074001,1751454643703,-460.0,0.00016438,2]
[369074003,1751454643713,-460.0,0.00016438,2]
[369074005,1751454643722,-457.59336901,0.00016438,2]
[369074007,1751454643731,-442.80731982,0.00016438,2]
[369074009,1751454643740,-460.0,0.00016438,2]
[369074011,1751454643750,-400.0,0.00016438,2]
[369074013,1751454643760,-460.0,0.00016438,2]
[369074015,1751454643770,-193.57137245,0.00016438,2]
[369074017,1751454643782,-267.77404527,0.00016438,2]
[369074019,1751454643792,-460.0,0.00016438,2]
[369074022,1751454643802,-500.0,0.00016438,2]
[369074024,1751454643811,-500.0,0.00016438,2]
[369074026,1751454643820,-198.02640327,0.00016438,2]
[369074028,1751454643829,-460.81458503,0.00016438,2]
[369074030,1751454643838,-460.0,0.00016438,2]
[369074032,1751454643848,-460.0,0.00016438,2]
[369074034,1751454643857,-460.0,0.00016438,2]
[369074036,1751454643867,-460.0,0.00016438,2]
[369074038,1751454643876,-460.0,0.00016438,2]
[369074040,1751454643885,-460.0,0.00016438,2]
[369074042,1751454643894,-460.0,0.00016438,2]
[369074044,1751454643904,-464.88762049,0.00016438,2]
[369074046,1751454643913,-460.0,0.00016438,2]
[369074048,1751454643922,-460.00001425,0.00016438,2]
[369074050,1751454643932,-460.0,0.00016438,2]
[369074052,1751454643941,-460.0,0.00016438,2]
[369074054,1751454643953,-460.0,0.00016438,2]
[369074056,1751454643962,-375.38774764,0.00016438,2]
[369074058,1751454643972,-208.08707259,0.00016438,2]
[369074066,1751454646312,-251.91292741,0.00016438,2]
[369074067,1751454646322,-460.0,0.00016438,2]
[369074068,1751454646519,-460.0,0.00016438,2]
[369074069,1751454646529,-460.0,0.00016438,2]
[369074070,1751454646539,-390.48993936,0.00016438,2]